bitfinex-derivatives/quotes_SOLF0:USTF0_20250603
["timestamp","ask_amount","ask_price","bid_price","bid_amount"]
[1748913561514,0.0468323,159.57,159.54,6.264]
[1748913562217,0.0468323,159.57,159.55,6.2638]
[1748913562813,0.0468323,159.57,159.52,7.26713701]
[1748913563418,0.0468323,159.57,159.53,6.2645]
[1748913563817,0.0468323,159.57,159.52,7.26713701]
[1748913564010,0.0468323,159.57,159.54,6.2642]
[1748913565016,6.3099323,159.57,159.54,6.2642]
[1748913565413,0.0468323,159.57,159.54,6.2642]
[1748913565612,0.0468323,159.57,159.52,0.04085579]
[1748913565917,6.2637,159.56,159.52,0.04085579]
[1748913566113,6.2637,159.56,159.52,6.30565579]
[1748913566311,0.0468323,159.57,159.52,6.30565579]
[1748913566510,6.2644,159.54,159.52,0.04085579]
[1748913566711,7.22628122,159.54,159.47,38.23972536]
[1748913566911,34.4835,159.56,159.48,7.22628122]
[1748913566912,2.036,159.55,159.48,7.22628122]
[1748913567112,2.0968,159.58,159.5,7.22628122]
[1748913567513,2.0968,159.58,159.51,32.48]
[1748913567718,0.04419911,159.56,159.53,0.04816748]
[1748913568117,0.04419911,159.56,159.53,6.31256748]
[1748913568313,0.04419911,159.56,159.53,0.04816748]
[1748913568825,7.22628122,159.55,159.53,0.04816748]
[1748913569416,6.2643,159.54,159.53,0.04816748]
[1748913571322,6.2657,159.51,159.48,38.26355889]
[1748913571517,6.2657,159.51,159.47,5.78355889]
[1748913571721,6.2657,159.51,159.46,5.78355889]
[1748913571921,6.2657,159.51,159.45,39.70628122]
[1748913571922,6.2657,159.51,159.45,45.48984011]
[1748913572123,6.2657,159.51,159.46,5.78355889]
[1748913572324,0.04296733,159.5,159.47,6.3061213]
[1748913572823,0.04296733,159.5,159.47,0.0392213]
[1748913574926,0.04296733,159.5,159.49,6.2662]
[1748913575428,0.04296733,159.5,159.47,0.0392213]
[1748913575820,0.04296733,159.5,159.49,6.2662]
[1748913577030,0.04296733,159.5,159.47,5.83110491]
[1748913577930,0.04296733,159.5,159.49,6.2662]
[1748913578834,0.04296733,159.5,159.48,6.2665]
[1748913579227,0.04296733,159.5,159.49,6.2662]
[1748913580925,6.733e-05,159.5,159.49,45.97248122]
[1748913581929,6.733e-05,159.5,159.49,51.76305289]
[1748913582129,39.70628122,159.59,159.56,6.2633]
[1748913582130,32.48,159.59,159.56,6.2633]
[1748913582429,8.4421,159.61,159.54,7.22628122]
[1748913582830,8.4421,159.61,159.56,6.2634]
[1748913583025,6.30837571,159.6,159.57,0.04812451]
[1748913584420,0.04617571,159.6,159.57,0.04812451]
[1748913585526,0.04617571,159.6,159.59,6.2623]
[1748913585828,0.04617571,159.6,159.57,0.04812451]
[1748913586330,0.04617571,159.6,159.58,6.2624]
[1748913587137,148.20415793,159.67,159.58,7.22628122]
[1748913587429,5.84926523,159.68,159.64,7.22628122]
[1748913587624,5.84926523,159.69,159.66,6.2595]
[1748913587822,2.1767,159.7,159.66,6.2595]
[1748913588022,2.1767,159.7,159.65,6.2598]
[1748913588225,0.04529057,159.69,159.66,0.04517956]
[1748913589124,6.30379057,159.69,159.66,0.04517956]
[1748913590728,0.04529057,159.69,159.66,0.04517956]
[1748913591732,6.30369057,159.69,159.66,0.04517956]
[1748913591935,0.04529057,159.69,159.66,0.04517956]
[1748913594229,6.30379057,159.69,159.66,0.04517956]
[1748913594430,0.04529057,159.69,159.66,0.04517956]
[1748913594832,0.04529057,159.69,159.67,7.22628122]
[1748913595939,0.04529057,159.69,159.67,13.48518122]
[1748913596132,0.04529057,159.69,159.66,0.04517956]
[1748913596931,6.30379057,159.69,159.66,0.04517956]
[1748913597437,0.04529057,159.69,159.67,7.22628122]
[1748913598143,0.04529057,159.69,159.68,6.2588]
[1748913598937,0.04529057,159.69,159.66,32.50517956]
[1748913599335,0.04529057,159.69,159.66,0.04517956]
[1748913601434,0.04529057,159.69,159.67,6.2591]
[1748913602136,0.04529057,159.69,159.66,0.04517956]
[1748913603344,6.30379057,159.69,159.66,6.30467956]
[1748913603532,0.04529057,159.69,159.66,0.04517956]
[1748913603935,0.04529057,159.69,159.68,6.2588]
[1748913605342,32.46,159.74,159.67,39.66628122]
[1748913605533,32.46,159.74,159.69,7.22628122]
[1748913605737,12.4677,159.75,159.69,7.22628122]
[1748913605938,39.66628122,159.77,159.69,7.22628122]
[1748913606344,0.04136471,159.75,159.71,0.04078849]
[1748913606534,0.04136471,159.75,159.71,39.70706971]
[1748913607143,0.04136471,159.75,159.73,7.22628122]
[1748913607348,32.44,159.8,159.73,7.22628122]
[1748913607538,2.1463,159.83,159.78,6.2547]
[1748913608246,0.04451123,159.82,159.79,0.0467496]
[1748913609645,13.44121799,159.96,159.8,32.44]
[1748913609846,32.44,159.91,159.8,32.44]
[1748913610040,39.66628122,159.91,159.83,7.22628122]
[1748913610240,6.2517,159.87,159.84,32.44]
[1748913610445,39.66628122,159.91,159.84,32.44]
[1748913610748,0.04260046,159.89,159.86,0.04557935]
[1748913610948,6.2516,159.87,159.86,0.04557935]
[1748913612347,0.04260046,159.89,159.86,0.04557935]
[1748913613946,6.249,159.93,159.87,6.251]
[1748913614145,11.73031558,159.96,159.88,32.42]
[1748913614649,6.2495,159.92,159.88,32.42]
[1748913614954,0.04212054,159.92,159.88,0.04579685]
[1748913615147,6.2498,159.91,159.88,0.04579685]
[1748913615347,0.04212054,159.92,159.88,0.04579685]
[1748913615753,6.29152054,159.92,159.88,0.04579685]
[1748913616857,0.04212054,159.92,159.88,11.77611243]
[1748913617150,0.04212054,159.92,159.89,6.2502]
[1748913617353,0.04212054,159.92,159.88,11.77611243]
[1748913618054,0.04212054,159.92,159.89,6.2505]
[1748913618252,0.04212054,159.92,159.9,11.73031558]
[1748913618456,0.04212054,159.92,159.91,32.4]
[1748913618857,0.04212054,159.92,159.88,32.44579685]
[1748913620055,0.04212054,159.92,159.88,38.69669685]
[1748913621558,0.04212054,159.92,159.89,6.2504]
[1748913621763,0.04212054,159.92,159.88,44.17611243]
[1748913622455,0.04212054,159.92,159.89,6.2502]
[1748913622857,0.04212054,159.92,159.88,44.17611243]
[1748913624857,0.04212054,159.92,159.89,6.2505]
[1748913625166,0.04212054,159.92,159.88,44.17611243]
[1748913626164,0.04212054,159.92,159.89,6.2505]
[1748913626663,0.04212054,159.92,159.88,38.69659685]
[1748913627059,0.04212054,159.92,159.88,32.44579685]
[1748913627764,0.04212054,159.92,159.88,38.69669685]
[1748913629652,0.04212054,159.92,159.89,6.2505]
[1748913630667,0.04212054,159.92,159.9,6.2501]
[1748913631354,0.04212054,159.92,159.89,13.4441693]
[1748913631560,0.04212054,159.92,159.89,7.1937693]
[1748913633370,0.04212054,159.92,159.91,6.2498]
[1748913633561,0.04212054,159.92,159.88,32.44579685]
[1748913633759,0.04212054,159.92,159.89,7.1937693]
[1748913634465,0.04212054,159.92,159.91,6.2498]
[1748913635671,9.2840693,159.99,159.93,6.2489]
[1748913635969,6.2475,159.97,159.93,6.2489]
[1748913636362,7.1937693,160.04,159.95,7.1937693]
[1748913636560,7.1937693,160.04,159.9,540.0]
[1748913636561,0.04077671,160.0,159.96,32.38]
[1748913636774,0.04077671,160.0,159.96,0.04600226]
[1748913637274,6.28727671,160.0,159.96,6.29370226]
[1748913637474,7.1937693,159.98,159.96,0.04600226]
[1748913637671,6.2474,159.97,159.96,0.04600226]
[1748913637968,6.2474,159.97,159.9,578.6299]
[1748913637969,7.1937693,159.98,159.9,572.38]
[1748913638165,6.2495,159.92,159.9,567.6931304]
[1748913638472,2.0017,159.97,159.82,540.0]
[1748913638660,6.2489,159.94,159.89,6.2504]
[1748913638860,0.03964545,159.93,159.9,0.04201257]
[1748913639967,6.2498,159.91,159.9,0.04201257]
[1748913640370,0.03964545,159.93,159.9,0.04201257]
[1748913640582,6.2496,159.92,159.9,0.04201257]
[1748913640876,0.03964545,159.93,159.9,0.04201257]
[1748913641174,6.28894545,159.93,159.9,0.04201257]
[1748913641374,0.03964545,159.93,159.9,0.04201257]
[1748913642180,6.2498,159.91,159.9,0.04201257]
[1748913642874,6.2495,159.92,159.9,0.04201257]
[1748913643172,0.03964545,159.93,159.9,0.04201257]
[1748913643372,6.2498,159.91,159.9,0.04201257]
[1748913643768,0.03964545,159.93,159.9,0.04201257]
[1748913644672,0.03964545,159.93,159.9,7.23578187]
[1748913644872,0.03964545,159.93,159.92,7.1937693]
[1748913645080,0.03964545,159.93,159.92,39.5737693]
[1748913645673,0.03964545,159.93,159.92,45.8231693]
[1748913646277,12.95137793,160.01,159.92,39.5737693]
[1748913646577,12.95137793,160.01,159.94,7.1937693]
[1748913646783,12.95137793,160.01,159.94,6.2486]
[1748913646971,12.95137793,160.01,159.93,7.1937693]
[1748913647168,12.95137793,160.01,159.95,0.04154145]
[1748913647169,6.2474,159.98,159.95,0.04154145]
[1748913647474,0.04809594,159.99,159.95,0.04154145]
[1748913648176,6.29489594,159.99,159.95,0.00990016]
[1748913648786,6.2471,159.98,159.95,0.00990016]
[1748913648975,0.04809594,159.99,159.95,0.00990016]
[1748913649681,6.2471,159.98,159.95,0.00990016]
[1748913650080,0.04809594,159.99,159.95,0.00990016]
[1748913650279,6.29489594,159.99,159.95,6.25780016]
[1748913650484,6.29489594,159.99,159.95,0.00990016]
[1748913650778,0.04809594,159.99,159.95,0.00990016]
[1748913651080,0.04809594,159.99,159.96,32.38]
[1748913651270,0.04809594,159.99,159.96,38.6277]
[1748913652086,6.29479594,159.99,159.96,38.6277]
[1748913652276,0.04809594,159.99,159.96,32.38]
[1748913652584,0.04809594,159.99,159.95,0.00990016]
[1748913652781,0.04809594,159.99,159.95,6.25780016]
[1748913653382,6.29489594,159.99,159.95,6.25780016]
[1748913653784,0.04809594,159.99,159.95,0.00990016]
[1748913654179,0.04809594,159.99,159.95,32.38990016]
[1748913654991,7.1937693,159.98,159.95,0.00990016]
[1748913655493,6.2474,159.97,159.95,0.00990016]
[1748913655789,7.1937693,159.98,159.95,0.00990016]
[1748913656291,7.1937693,159.96,159.89,32.38]
[1748913656488,6.2496,159.92,159.89,32.38]
[1748913656685,7.1937693,159.96,159.9,6.25]
[1748913656881,7.1937693,159.96,159.9,13.4437693]
[1748913657084,2.1067,159.97,159.9,13.4437693]
[1748913657085,6.2489,159.94,159.9,7.1937693]
[1748913657283,0.04718627,159.94,159.9,7.23565039]
[1748913657692,5.83061776,160.0,159.92,7.1937693]
[1748913657894,5.75760863,160.01,159.96,13.4414693]
[1748913658392,6.2463,160.0,159.96,7.1937693]
[1748913658692,6.28937125,160.0,159.96,7.23969755]
[1748913658895,6.2467,159.99,159.96,7.23969755]
[1748913659088,0.04307125,160.0,159.96,0.04592825]
[1748913659489,6.2473,159.98,159.96,0.04592825]
[1748913659989,6.2474,159.97,159.96,0.04592825]
[1748913660392,0.04307125,160.0,159.9,39.5737693]
[1748913660697,5.75760863,160.01,159.94,7.1937693]
[1748913660887,5.75760863,160.01,159.96,7.1937693]
[1748913661405,0.0396344,160.0,159.97,0.04493729]
[1748913661896,0.0396344,160.0,159.97,6.29233729]
[1748913662890,0.0396344,160.0,159.98,6.247]
[1748913663093,0.0396344,160.0,159.97,0.04493729]
[1748913663498,0.0396344,160.0,159.97,7.23870659]
[1748913664599,5.75760863,160.01,159.99,7.1937693]
[1748913664800,5.75760863,160.01,160.0,32.46]
[1748913665001,39.6537693,160.08,160.0,32.46]
[1748913665195,32.46,160.08,160.02,7.1937693]
[1748913665504,0.04796266,160.07,160.03,0.04791263]
[1748913666191,6.2447,160.04,160.03,0.04791263]
[1748913666590,6.2462,160.0,159.98,7.1937693]
[1748913667398,9.2934693,160.03,159.92,549.69527684]
[1748913667601,9.2934693,160.03,159.97,0.04674563]
[1748913667602,0.04123418,160.01,159.97,0.04674563]
[1748913668493,6.2469,159.99,159.97,0.04674563]
[1748913669904,0.04123418,160.01,159.97,7.24051493]
[1748913670095,0.04123418,160.01,159.98,7.1937693]
[1748913670501,0.04123418,160.01,159.98,13.4407693]
[1748913670707,0.04123418,160.01,159.98,39.6337693]
[1748913671104,0.04123418,160.01,160.0,13.4400693]
[1748913674009,0.04123418,160.01,160.0,7.1937693]
[1748913675123,0.04123418,160.01,159.98,32.44]
[1748913675319,0.04123418,160.01,159.98,39.6337693]
[1748913675823,0.04123418,160.01,159.98,32.44]
[1748913676022,0.04123418,160.01,159.97,0.04674563]
[1748913676223,6.247,159.98,159.97,0.04674563]
[1748913676818,7.1937693,159.99,159.93,7.1937693]
[1748913677016,2.1228,159.97,159.92,5.70902743]
[1748913677320,6.249,159.93,159.92,5.70902743]
[1748913677519,6.249,159.93,159.9,7.57098842]
[1748913677716,6.29105371,159.93,159.9,7.61774947]
[1748913678225,0.04205371,159.93,159.9,7.61774947]
[1748913678723,0.04205371,159.93,159.92,7.1937693]
[1748913678919,0.04205371,159.93,159.91,32.44]
[1748913679126,0.04205371,159.93,159.92,7.1937693]
[1748913679427,0.04205371,159.93,159.92,17.96800411]
[1748913682035,0.04205371,159.93,159.91,32.44]
[1748913682631,0.04205371,159.93,159.92,6.2494]
[1748913685634,2.1228,159.97,159.95,6.248]
[1748913685827,6.2468,159.99,159.95,6.248]
[1748913686334,6.2471,159.98,159.94,17.96710411]
[1748913686532,6.29205492,159.98,159.94,18.00750828]
[1748913687034,6.2475,159.97,159.94,11.75900828]
[1748913687332,0.04495492,159.98,159.94,11.75900828]
[1748913687726,6.29225492,159.98,159.94,18.00750828]
[1748913688032,6.29225492,159.98,159.94,6.28890417]
[1748913688229,0.04495492,159.98,159.95,6.2482]
[1748913689329,0.04495492,159.98,159.95,11.71860411]
[1748913689526,0.04495492,159.98,159.95,44.17860411]
[1748913690328,0.04495492,159.98,159.97,17.96600411]
[1748913693433,2.0875,160.05,159.97,11.71860411]
[1748913693631,2.0875,160.05,159.99,11.71860411]
[1748913693831,2.0875,160.05,159.99,44.25860411]
[1748913694046,8.3322,160.05,160.0,6.246]
[1748913694335,0.04629402,160.04,160.01,0.04723738]
[1748913694538,6.2452,160.03,160.01,0.04723738]
[1748913695927,6.2455,160.02,160.01,0.04723738]
[1748913697233,0.04629402,160.04,160.01,0.04723738]
[1748913699241,6.2454,160.03,160.01,0.04723738]
[1748913700040,0.04629402,160.04,160.01,0.04723738]
[1748913700041,6.29109402,160.04,160.01,6.29293738]
[1748913700240,0.04629402,160.04,160.01,7.23263511]
[1748913700440,6.2426,160.1,160.03,7.18539773]
[1748913700636,6.2426,160.1,160.09,7.18539773]
[1748913701240,4.23,160.14,160.07,7.18539773]
[1748913701445,0.04538223,160.12,160.09,0.04530406]
[1748913701645,32.58538223,160.12,160.09,0.04530406]
[1748913702052,6.2424,160.1,160.09,0.01094681]
[1748913702246,32.52,160.11,159.99,38.2077521]
[1748913702444,6.2435,160.08,160.05,7.18539773]
[1748913702653,34.7164,160.11,160.05,7.18539773]
[1748913702846,34.7164,160.11,160.03,6.2449]
[1748913703150,0.04331972,160.09,160.05,0.04486834]
[1748913703539,6.2443,160.06,160.05,0.04486834]
[1748913705551,32.52,160.07,159.97,11.70181827]
[1748913706447,11.74798176,160.04,160.0,0.03986602]
[1748913706646,6.2459,160.01,160.0,0.03986602]
[1748913706851,0.04616349,160.04,160.0,0.03986602]
[1748913707146,6.2452,160.03,160.0,0.03986602]
[1748913710655,6.2456,160.02,160.0,0.03986602]
[1748913712145,0.04616349,160.04,160.0,0.03986602]
[1748913712351,0.04616349,160.04,160.01,11.70181827]
[1748913713048,0.04616349,160.04,160.01,44.22181827]
[1748913713847,0.04616349,160.04,160.02,6.2455]
[1748913714050,0.04616349,160.04,160.01,32.52]
[1748913714354,0.04616349,160.04,160.02,11.70181827]
[1748913715445,0.04616349,160.04,160.03,6.2451]
[1748913715653,0.04616349,160.04,160.02,11.70181827]
[1748913715945,0.04616349,160.04,160.01,32.52]
[1748913716154,0.04616349,160.04,160.01,38.7656]
[1748913716350,0.04616349,160.04,160.01,32.52]
[1748913716551,6.2452,160.03,160.0,0.03986602]
[1748913716757,0.04616349,160.04,160.0,0.03986602]
[1748913717251,0.04616349,160.04,160.0,6.28606602]
[1748913717758,0.04616349,160.04,160.01,11.70181827]
[1748913717950,0.04616349,160.04,160.03,6.2451]
[1748913719055,0.04616349,160.04,160.02,6.2453]
[1748913719355,0.04616349,160.04,160.03,11.70181827]
[1748913719654,0.04616349,160.04,160.03,17.94691827]
[1748913719853,4.1343,160.12,160.03,11.70181827]
[1748913720154,6.2413,160.13,160.09,6.2425]
[1748913720356,32.52,160.15,160.07,11.70181827]
[1748913720760,6.2419,160.12,160.09,0.04712834]
[1748913722047,11.70181827,160.12,160.09,0.04712834]
[1748913722247,4.1819,160.11,160.06,11.70181827]
[1748913723360,4.1819,160.11,160.03,32.52]
[1748913723361,0.04488102,160.1,160.07,0.04718065]
[1748913723550,2.10068102,160.1,160.07,0.04718065]
[1748913723747,2.10068102,160.1,160.03,32.52]
[1748913723947,2.10068102,160.1,160.01,11.70181827]
[1748913724146,2.10068102,160.1,160.0,32.56]
[1748913724353,11.70181827,160.09,160.0,44.26181827]
[1748913724757,0.04767157,160.06,160.03,0.04555135]
[1748913724958,32.56,160.05,159.97,32.56]
[1748913725154,6.2463,160.0,159.97,32.56]
[1748913725356,2.0558,160.04,159.96,237.93658909]
[1748913725548,2.0558,160.04,159.96,231.68878909]
[1748913725956,0.04005281,160.02,159.98,0.04060287]
[1748913726264,6.2463,160.0,159.98,0.04060287]
[1748913726455,0.04005281,160.02,159.98,0.04060287]
[1748913726655,0.04005281,160.02,160.0,11.70181827]
[1748913726955,32.56,160.08,160.01,6.2459]
[1748913727157,32.56,160.08,159.98,32.56]
[1748913727357,6.2437,160.07,160.02,6.2452]
[1748913727555,32.56,160.08,160.01,11.70181827]
[1748913727751,2.2104,160.09,160.03,11.70181827]
[1748913727956,0.04002576,160.06,160.03,0.04456685]
[1748913728149,0.04473324,160.06,160.05,11.70181827]
[1748913728856,34.5668,160.16,160.07,11.70181827]
[1748913729160,36.585,160.16,160.07,11.70181827]
[1748913729356,4.025,160.16,160.09,11.70181827]
[1748913729662,2.0068,160.16,160.11,11.70181827]
[1748913729857,0.04150812,160.13,160.11,11.70181827]
[1748913730056,32.56,160.19,160.12,11.70181827]
[1748913730257,32.56,160.19,160.1,32.56]
[1748913730258,32.56,160.21,160.14,11.70181827]
[1748913730759,34.5668,160.21,160.12,11.70181827]
[1748913731261,0.04709713,160.18,160.14,0.04254406]
[1748913731655,34.5668,160.21,160.14,0.04254406]
[1748913731656,12.60422679,160.25,160.16,23.40363654]
[1748913731960,12.60422679,160.25,160.23,11.70181827]
[1748913732961,12.60422679,160.25,160.24,6.2369]
[1748913733163,12.60422679,160.25,160.23,11.70181827]
[1748913733459,12.60422679,160.25,160.24,6.2369]
[1748913733860,12.60422679,160.25,160.23,11.70181827]
[1748913734066,12.60422679,160.25,160.22,11.74604151]
[1748913734759,12.60422679,160.25,160.24,11.70181827]
[1748913735154,12.60422679,160.25,160.22,0.04422324]
[1748913735554,63.08604506,160.25,160.16,32.54]
[1748913735760,6.2388,160.2,160.16,32.54]
[1748913736061,11.70181827,160.23,160.16,32.54]
[1748913736363,11.70181827,160.23,160.13,583.80181827]
[1748913736364,2.1507,160.22,160.13,583.80181827]
[1748913736559,0.04277401,160.19,160.16,0.04786094]
[1748913738464,6.2396,160.17,160.16,0.04786094]
[1748913741964,6.2396,160.17,160.16,6.094e-05]
[1748913742167,45.0196,160.17,160.16,6.094e-05]
[1748913742566,38.7796,160.17,160.16,6.094e-05]
[1748913743165,45.0196,160.17,160.16,6.094e-05]
[1748913743372,6.2418,160.12,160.06,44.24181827]
[1748913743574,11.70181827,160.14,160.06,38.7838]
[1748913743773,6.2423,160.11,160.06,38.7838]
[1748913744075,11.70181827,160.12,160.03,44.24181827]
[1748913744279,0.04307016,160.09,160.06,0.04386457]
[1748913745375,2.0328,160.16,160.07,11.70181827]
[1748913745583,2.0328,160.16,160.12,6.2413]
[1748913746076,2.0328,160.16,160.1,11.70181827]
[1748913746077,8.2729,160.16,160.11,6.2419]
[1748913746375,0.04407487,160.15,160.12,0.04682056]
[1748913746678,6.2411,160.14,160.12,0.04682056]
[1748913746872,0.04407487,160.15,160.12,0.04682056]
[1748913747071,6.2411,160.14,160.12,0.04682056]
[1748913747278,32.54,160.13,160.07,6.2432]
[1748913747576,32.54,160.13,160.05,11.70181827]
[1748913748470,0.04487614,160.11,160.07,6.2890846]
[1748913748973,6.28687614,160.11,160.07,6.2890846]
[1748913749779,6.28685143,160.11,160.07,6.2890846]
[1748913750475,0.04485143,160.11,160.07,6.2890846]
[1748913751677,6.28685143,160.11,160.07,6.2890846]
[1748913752285,0.04485143,160.11,160.07,6.2890846]
[1748913753683,6.28685143,160.11,160.07,6.2890846]
[1748913755481,0.04485143,160.11,160.08,6.2431]
[1748913755885,0.04485143,160.11,160.09,6.2427]
[1748913756384,0.04485143,160.11,160.1,6.2424]
[1748913757487,35.2728,160.16,160.1,11.70181827]
[1748913758080,35.2728,160.16,160.12,11.70181827]
[1748913758286,33.24,160.19,160.12,11.70181827]
[1748913758482,0.04371523,160.17,160.14,0.04351845]
[1748913758679,0.04371523,160.17,160.14,0.01045126]
[1748913758879,0.04371523,160.17,160.15,6.2404]
[1748913759081,0.04371523,160.17,160.14,0.01045126]
[1748913759285,0.04371523,160.17,160.05,5.66083903]
[1748913759589,11.70181827,160.16,160.07,11.70181827]
[1748913759788,39.4807,160.15,160.12,6.2415]
[1748913759987,33.24,160.16,160.12,6.2415]
[1748913760182,33.24,160.17,160.12,6.2415]
[1748913760386,33.24,160.17,160.05,33.24]
[1748913760387,0.04264638,160.16,160.13,0.04735087]
[1748913760585,0.04678376,160.16,160.13,11.74554639]
[1748913761280,0.04678376,160.16,160.13,0.04372812]
[1748913761888,6.2408,160.14,160.13,0.04372812]
[1748913762291,0.04678376,160.16,160.13,0.04372812]
[1748913764090,6.2408,160.14,160.13,0.04372812]
[1748913764896,6.2405,160.15,160.13,0.04372812]
[1748913765792,6.2408,160.14,160.13,0.04372812]
[1748913766494,6.2406,160.15,160.13,0.04372812]
[1748913766699,0.04678376,160.16,160.13,0.04372812]
[1748913768294,6.2405,160.15,160.13,0.04372812]
[1748913770003,0.04678376,160.16,160.13,0.04372812]
[1748913770394,0.04678376,160.16,160.14,11.70181827]
[1748913771400,0.04678376,160.16,160.13,0.04372812]
[1748913771605,0.04678376,160.16,160.13,6.28472812]
[1748913771803,0.04678376,160.16,160.13,0.04372812]
[1748913771998,7.76153824,160.29,160.13,0.04372812]
[1748913771999,5.80463113,160.27,160.14,11.70181827]
[1748913772297,7.76153824,160.3,160.2,11.70181827]
[1748913772298,33.22,160.29,160.2,11.70181827]
[1748913772699,6.2361,160.26,160.22,6.2373]
[1748913772900,11.70181827,160.27,160.19,33.22]
[1748913773109,0.04728867,160.24,160.2,0.03962044]
[1748913773301,6.28458867,160.24,160.2,0.03962044]
[1748913773699,6.2374,160.23,160.2,0.03962044]
[1748913773909,0.04728867,160.24,160.2,0.03962044]
[1748913774205,11.70181827,160.23,160.2,0.03962044]
[1748913774405,6.2381,160.21,160.2,0.03962044]
[1748913777808,11.70181827,160.21,160.1,5.67687461]
[1748913778104,11.70181827,160.18,160.08,5.67687461]
[1748913778305,11.70181827,160.18,160.07,50.59869288]
[1748913778510,6.2406,160.15,160.11,6.242]
[1748913778707,11.70181827,160.18,160.08,5.67687461]
[1748913779003,0.04321275,160.15,160.11,0.04593657]
[1748913779905,2.17621275,160.15,160.11,0.04593657]
[1748913781102,6.2415,160.13,160.11,0.04593657]
[1748913781597,0.04321275,160.15,160.11,0.04593657]
[1748913781907,0.04321275,160.15,160.12,11.70181827]
[1748913782409,0.04321275,160.15,160.13,6.2412]
[1748913783307,0.04321275,160.15,160.14,6.2408]
[1748913784100,0.04321275,160.15,160.13,6.2411]
[1748913785214,0.04321275,160.15,160.12,6.2415]
[1748913785407,0.04321275,160.15,160.11,0.04593657]
[1748913785713,0.04321275,160.15,160.11,6.28763657]
[1748913786913,0.04321275,160.15,160.11,0.04593657]
[1748913789209,0.04321275,160.15,160.12,6.2416]
[1748913789710,0.04321275,160.15,160.11,11.74775484]
[1748913790305,33.78,160.21,160.13,11.70181827]
[1748913791210,12.60422679,160.25,160.17,11.70181827]
[1748913791408,0.04430517,160.23,160.19,11.74512352]
[1748913792101,0.04430517,160.23,160.22,6.2377]
[1748913793307,0.04430517,160.23,160.21,6.2379]
[1748913793506,0.04430517,160.23,160.19,11.74512352]
[1748913794011,0.04430517,160.23,160.22,6.2377]
[1748913794714,0.04430517,160.23,160.21,6.2379]
[1748913794907,0.04430517,160.23,160.19,11.74512352]
[1748913795108,0.04430517,160.23,160.19,0.04330525]
[1748913796008,6.28190517,160.23,160.19,6.28190525]
[1748913796915,0.04430517,160.23,160.19,6.28190525]
[1748913798011,6.2378,160.22,160.19,0.04330525]
[1748913798810,6.2381,160.21,160.19,0.04330525]
[1748913799017,0.04430517,160.23,160.19,0.04330525]
[1748913799517,6.28170517,160.23,160.19,0.04330525]
[1748913799913,6.28170517,160.23,160.19,6.28200525]
[1748913800710,0.04430517,160.23,160.19,0.04330525]
[1748913801417,0.04430517,160.23,160.2,6.2384]
[1748913802612,0.04430517,160.23,160.19,11.74512352]
[1748913803019,0.04430517,160.23,160.22,6.2377]
[1748913803321,0.04430517,160.23,160.19,11.74512352]
[1748913803519,0.04430517,160.23,160.2,6.2382]
[1748913804021,0.04430517,160.23,160.19,11.74512352]
[1748913804322,0.04430517,160.23,160.22,6.2377]
[1748913804617,12.60422679,160.25,160.21,11.70181827]
[1748913804918,12.60422679,160.25,160.24,6.2369]
[1748913806211,12.60422679,160.25,160.23,6.28306724]
[1748913806411,12.60422679,160.25,160.23,0.04586724]
[1748913806613,6.2369,160.24,160.23,0.04586724]
[1748913807419,6.238,160.22,160.18,11.70181827]
[1748913807620,12.60422679,160.25,160.18,11.70181827]
[1748913808524,0.04215048,160.23,160.2,0.0397163]
[1748913808825,6.2377,160.22,160.2,0.0397163]
[1748913809026,0.04215048,160.23,160.2,0.0397163]
[1748913809422,6.2381,160.21,160.2,0.0397163]
[1748913813726,0.04215048,160.23,160.22,6.2377]
[1748913813922,12.60422679,160.25,160.2,11.74153457]
[1748913814119,12.60422679,160.25,160.22,11.70181827]
[1748913814327,12.60422679,160.25,160.2,0.0397163]
[1748913814725,6.2369,160.24,160.2,0.0397163]
[1748913815024,0.03946781,160.24,160.2,0.0397163]
[1748913815421,0.03946781,160.24,160.21,6.2378]
[1748913816131,0.03946781,160.24,160.2,0.0397163]
[1748913816625,0.03946781,160.24,160.23,6.2373]
[1748913817619,2.25752679,160.25,160.24,6.2369]
[1748913817826,1.345e-05,160.25,160.24,17.93871827]
[1748913818034,33.18,160.32,160.22,33.18]
[1748913818328,33.18,160.32,160.26,11.70181827]
[1748913818528,6.274166,160.31,160.27,0.04421722]
[1748913818729,0.039766,160.31,160.27,6.27971722]
[1748913818930,0.039766,160.31,160.27,0.04421722]
[1748913819335,6.2353,160.28,160.27,0.01059686]
[1748913819528,33.18,160.28,160.21,11.70181827]
[1748913820125,6.2368,160.25,160.21,17.93961827]